Cogmind - Beta 10.1 @@@ ROGUE MODE // 2020.09.22 @ 22:30:56 Player: Judas Result: Destroyed by L-41 Fighter with Axe Performance ------------- Evolutions (4) 2000 Regions Visited (6) 1200 Robots Destroyed (97) 485 Value Destroyed (2696) 2696 Prototype IDs (5) 100 Alien Tech Used (0) 0 Bonus (0) 0 TOTAL SCORE: 6481 Bonus ------- None Cogmind --------- Core Integrity 0/850 Matter 38/300 Energy 32/100 System Corruption 10% Temperature Cool (0) Movement Core (1150) Ox22 Location -6/Factory Parts ------- > --- POWER (2) -------- (None) > --- PROPULSION (2) --- (None) > --- UTILITY (6) ------ High-capacity Storage Unit High-capacity Storage Unit Visual Processing Unit Advanced Signal Interpreter Advanced Focal Shield > --- WEAPON (5) ------- (None) > --- INVENTORY (20) --- Improved Ion Engine Armored Huge Wheel High-capacity Storage Unit Compact Matter Pod (150) Target Analyzer Recoil Stabilizer Matter Filter Kinecellerator Hardened Medium Armor Plating Advanced Focal Shield High-powered Shock Rifle High-powered Shock Rifle Heavy Laser Force Rifle Flak Cannon Katana Peak State ------------ > --- POWER ------------ Improved Deuterium Engine Light Angular Momentum Engine > --- PROPULSION ------- Armored Huge Wheel > --- UTILITY ---------- Improved Heat Sink High-capacity Storage Unit High-capacity Storage Unit Visual Processing Unit Advanced Sensor Array Advanced Signal Interpreter > --- WEAPON ----------- High-powered Shock Rifle Force Rifle Gauss Rifle Flak Gun Coil Gun > --- INVENTORY -------- Improved Ion Engine Armored Huge Wheel High-capacity Storage Unit Compact Matter Pod Target Analyzer Recoil Stabilizer Matter Filter Kinecellerator Hardened Medium Armor Plating Improved Light Armor Plating Advanced Focal Shield Advanced Focal Shield High-powered Shock Rifle High-powered Shock Rifle Heavy Laser Flak Cannon Grenade Launcher Katana [Rating: 59] Favorites ----------- Power Fission Core Engine Improved Deuterium Engine Power Core Fission Core Propulsion Light Treads Treads Light Treads Leg Aluminum Leg Wheel Armored Huge Wheel Utility High-capacity Storage Unit Device Improved Heat Sink Storage High-capacity Storage Unit Processor Visual Processing Unit Protection Hardened Medium Armor Plating Weapon Flak Gun Energy Gun Heavy EM Shotgun Energy Cannon Particle Cannon Ballistic Gun Flak Gun Ballistic Cannon Flak Cannon Launcher Grenade Launcher Slashing Weapon Katana Build | -11 -10 -9 -9 -8 -7 -6 ------- Run | Scr Mat Mat Min Mat Fac Fac Slots Evolved 8 | . . 2 . 2 2 2 Power 1 | . . . . . . 1 Propulsion . | . . . . . . . Utility 4 | . . . . 2 2 . Weapon 3 | . . 2 . . . 1 Parts Attached 95 | 4 2 13 3 18 11 44 Power 13 | 1 . 2 1 1 1 7 Engine 10 | 1 . 1 . . 1 7 Core 3 | . . 1 1 1 . . Reactor . | . . . . . . . Propulsion 18 | 2 . 4 . 5 1 6 Treads 12 | 2 . 4 . 5 1 . Leg . | . . . . . . . Wheel 6 | . . . . . . 6 Hover . | . . . . . . . Flight . | . . . . . . . Utility 29 | 1 2 2 1 3 8 12 Device 11 | 1 . . 1 2 1 6 Storage 6 | . 2 1 . . 3 . Processor 4 | . . . . 1 2 1 Hackware . | . . . . . . . Protection 8 | . . 1 . . 2 5 Artifact . | . . . . . . . Weapon 35 | . . 5 1 9 1 19 Energy Gun 11 | . . 1 . 2 1 7 Energy Cannon 1 | . . . . 1 . . Ballistic Gun 16 | . . 4 . 6 . 6 Ballistic Cannon 3 | . . . . . . 3 Launcher 2 | . . . 1 . . 1 Special Weapon . | . . . . . . . Impact Weapon . | . . . . . . . Slashing Weapon 2 | . . . . . . 2 Piercing Weapon . | . . . . . . . Special Melee Weapon . | . . . . . . . Unidentified Prototypes 1 | . . . . 1 . . Parts Lost 42 | . . 1 3 3 11 24 Power 7 | . . . . . 2 5 Propulsion 6 | . . 1 . 1 2 2 Utility 8 | . . . 1 . 3 4 Weapon 21 | . . . 2 2 4 13 Highest Loss Streak 12 | . . 1 3 3 10 12 Average Slot Usage (%) 91 | . 100 97 92 95 96 84 Engine 6 | . 14 9 . . . 10 Core 3 | . . 1 11 8 6 . Treads 11 | . 28 21 22 17 14 . Wheel 2 | . . . . . . 5 Device 10 | . 2 . 8 18 16 8 Storage 13 | . 25 15 11 9 10 13 Processor 10 | . . . . 9 14 13 Protection 2 | . . 6 2 . 1 3 Energy Gun 4 | . . 9 4 1 5 5 Ballistic Gun 22 | . 28 33 27 25 22 15 Ballistic Cannon 1 | . . . . . . 3 Naked Turns . | . . . . . . . Heaviest Build 114 | 14 23 53 53 60 94 114 Greatest Support 44 | 40 40 40 40 44 44 28 Greatest Overweight (x) 30 | . . 2 1 2 4 30 Average Overweight (x) 1 | . . . 1 1 1 3 Largest Inventory Capacity 20 | 6 12 16 12 12 20 20 Average Capacity 15 | 6 10 12 12 12 15 20 Most Carried 20 | 6 10 13 12 12 20 20 Average Carried 13 | 5 7 11 10 10 14 17 Final Capacity 20 | 6 12 12 12 12 20 20 Final Carried 17 | 6 10 12 10 12 17 17 Class Distribution -------------------- 45% | Scavenger-Skirmisher 9% | Hauler-Gunner 8% | Mutant 8% | Scavenger-Assassin 8% | Hauler-Skirmisher 7% | Scavenger-Tank 6% | Gunner Dominant Class ---------------- Mutant | -10/Materials Scavenger-Tank | -9/Materials Scavenger-Gunner | -9/Mines Scavenger-Skirmisher | -8/Materials Scavenger-Skirmisher | -7/Factory Scavenger-Skirmisher | -6/Factory Resources | -11 -10 -9 -9 -8 -7 -6 ----------- Run | Scr Mat Mat Min Mat Fac Fac Matter Collected 3093 | 270 140 314 . 409 537 1423 Remotely 64 | 64 . . . . . . Salvage Created 4271 | 138 236 577 14 507 596 2203 Parts 258 | 15 15 43 1 31 38 115 Haulers Intercepted 1 | . . . . . 1 . Recyclers Shooed 13 | . . 1 . 1 1 10 Parts Field Recycled . | . . . . . . . Retrieved Matter . | . . . . . . . Parts Self-Destructed . | . . . . . . . Prevented . | . . . . . . . Kills | -11 -10 -9 -9 -8 -7 -6 ------- Run | Scr Mat Mat Min Mat Fac Fac Combat Hostiles Destroyed 58 | . 4 13 3 11 11 16 Guns 51 | . 4 13 3 7 11 13 Cannons 6 | . . . . 4 . 2 Classes Destroyed 15 | 2 4 3 1 2 3 . Worker 15 | . 1 2 . . 2 10 Builder 6 | . 1 . 1 . . 4 Tunneler 3 | 3 . . . . . . Hauler 1 | . . . . . 1 . Recycler 9 | 1 . . . . . 8 Operator 1 | . . . . . 1 . Watcher 4 | . 1 1 . 1 . 1 Swarmer 10 | . . 4 . 3 3 . Grunt 23 | . 4 5 . 3 4 7 Brawler 3 | . . . . 1 1 1 Duelist 2 | . . 1 . . . 1 Sentry 10 | . . 3 . 3 1 3 Hunter 3 | . . . . 1 . 2 Programmer 4 | . . . . . 2 2 Assembled 3 | . . . 3 . . . Best Kill Streak 10 | 2 3 4 4 5 3 10 Combat Bots Only 5 | . 2 4 3 5 3 3 Max Kills in Single Turn 2 | 2 2 2 1 2 2 2 Gunslinging 1 | . . 1 . . 1 . Exploded . | . . . . . . . Melee . | . . . . . . . Uniques/NPCs Destroyed . | . . . . . . . Combat | -11 -10 -9 -9 -8 -7 -6 -------- Run | Scr Mat Mat Min Mat Fac Fac Damage Taken 7202 | . 270 579 235 653 1536 3929 Core 1366 | . 21 59 13 79 332 862 Absorbed by Shields . | . . . . . . . Core Remaining (%) 82 | 100 91 . 82 85 52 . Volleys Fired 201 | 5 20 25 6 22 26 97 Largest 5 | 2 2 4 4 4 4 5 Hottest 235 | 40 40 119 119 152 164 235 Shots Fired 645 | 10 40 97 23 67 93 315 Gun 580 | 10 40 97 18 59 93 263 Cannon 59 | . . . . 8 . 51 Launcher 6 | . . . 5 . . 1 Special . | . . . . . . . Kinetic 528 | 10 40 75 17 55 78 253 Thermal 58 | . . 22 1 12 4 19 Explosive 6 | . . . 5 . . 1 Electromagnetic 53 | . . . . . 11 42 Robot Hit Streak 20 | 4 16 15 3 20 13 16 Robot Miss Streak 11 | 1 2 2 7 3 6 11 Penetration Max 1 | . . . . . . 1 Secondary Targets 15 | . 3 5 . 1 4 2 Max Gunslinging Chain 1 | . 1 1 . 1 1 1 Shots Hit Robots 441 | 7 31 61 9 48 84 201 Core Hits 305 | 5 11 25 12 29 61 162 Critical Hits 4 | . . . . 1 . 3 Critical Kills 2 | . . . . 1 . 1 Critical Parts Destroyed 2 | . . . . . . 2 Melee Attacks 2 | . . . . . . 2 Impact . | . . . . . . . Slashing 2 | . . . . . . 2 Piercing . | . . . . . . . Sneak Attacks . | . . . . . . . Combat Hostiles . | . . . . . . . Follow-up Attacks . | . . . . . . . Damage Inflicted 8342 | 100 401 828 238 815 1432 4528 Guns 7037 | 100 401 828 96 669 1224 3719 Cannons 813 | . . . . 144 . 669 Explosions 483 | . . . 142 . 208 133 Melee . | . . . . . . . Ramming 9 | . . . . 2 . 7 Kinetic 6378 | 100 401 562 82 608 1087 3538 Thermal 844 | . . 266 14 205 74 285 Explosive 441 | . . . 142 . 166 133 Electromagnetic 670 | . . . . . 105 565 Impact . | . . . . . . . Slashing . | . . . . . . . Piercing . | . . . . . . . Highest Corruption 10 | . . . . . 5 10 Average Corruption 1 | . . . . . 3 1 Corruption Purged . | . . . . . . . Effects 8 | . . . . . 5 3 Message Errors 2 | . . . . . . 2 Matter Fused 4 | . . . . . 4 . Energy Discharges 1 | . . . . . 1 . Weapon Failures 1 | . . . . . . 1 Overload Shots . | . . . . . . . Overflow Damage 68 | . . . . . 7 61 Projectiles 4 | . . . . . . 4 Explosions 64 | . . . . . 7 57 Melee . | . . . . . . . Knockbacks 15 | . . . . . . 15 Impact . | . . . . . . . Kinetic 15 | . . . . . . 15 Secondary . | . . . . . . . Self-Inflicted Damage 358 | . . . . . 123 235 Shots 6 | . . . . . 2 4 Rammed 2 | . . . . 1 . 1 Targets Rammed 2 | . . . . 1 . 1 Kicked . | . . . . . . . Crushed . | . . . . . . . Highest Temperature 578 | . 2 374 28 51 336 578 Average Temperature 120 | . 2 124 14 19 109 138 Received Heat Transfer 1879 | . 153 174 40 252 603 657 Effects 17 | . . . . . 3 14 Shutdowns 5 | . . . . . . 5 Energy Bleed 2 | . . . . . 2 . Interference 1 | . . . . . . 1 Matter Decay 3 | . . . . . 1 2 Damage (minor) 2 | . . . . . . 2 Damage (major) 4 | . . . . . . 4 Siege Activations . | . . . . . . . Robots Corrupted 1 | . . . . . . 1 Combat Hostiles 1 | . . . . . . 1 Parts Fried 1 | . . . . . . 1 Impact Corruptions . | . . . . . . . Robots Melted . | . . . . . . . Combat Hostiles . | . . . . . . . Parts Melted 3 | . . 3 . . . . Heat Transferred 1805 | . . 666 37 407 125 570 Parts Sabotaged . | . . . . . . . Parts Stolen . | . . . . . . . Parts Stripped . | . . . . . . . Power Chain Reactions 1 | . . . . . 1 . Missiles Intercepted . | . . . . . . . Alert | -11 -10 -9 -9 -8 -7 -6 ------- Run | Scr Mat Mat Min Mat Fac Fac Peak Influence 334 | 20 135 303 92 334 239 298 Initial 92 | . 13 56 92 26 84 77 Average 120 | 10 54 179 74 170 81 129 Maximum Alert Level 1 | . . 1 . 1 1 1 Low Security (%) 81 | 100 100 56 100 63 97 78 Level 1 18 | . . 43 . 36 2 21 Level 2 . | . . . . . . . Level 3 . | . . . . . . . Level 4 . | . . . . . . . Level 5 . | . . . . . . . High Security . | . . . . . . . Max Security . | . . . . . . . Squads Dispatched 11 | . . 1 . 1 5 4 Investigation 4 | . . 1 . 1 1 1 Extermination 4 | . . . . . 2 2 Reinforcement 3 | . . . . . 2 1 Assault . | . . . . . . . Garrison . | . . . . . . . Intercept . | . . . . . . . Construction Impeded . | . . . . . . . Haulers Reinforced . | . . . . . . . Stealth | -11 -10 -9 -9 -8 -7 -6 --------- Run | Scr Mat Mat Min Mat Fac Fac Distress Signals 9 | . . 2 1 2 1 3 Communications Jammed . | . . . . . . . Distress Signals . | . . . . . . . Times Spotted 114 | . 6 19 5 20 21 43 Peak Tracking Total 6 | . 4 4 2 5 6 6 Tactical Retreats 6 | . . 1 . . 1 4 Traps | -11 -10 -9 -9 -8 -7 -6 ------- Run | Scr Mat Mat Min Mat Fac Fac Traps Triggered 2 | . . 1 . . . 1 Indirectly . | . . . . . . . Trap Hack Attempts . | . . . . . . . Triggered . | . . . . . . . Disarmed . | . . . . . . . Reprogrammed . | . . . . . . . Reused . | . . . . . . . Traps Extracted . | . . . . . . . Installed . | . . . . . . . Triggered . | . . . . . . . Machines | -11 -10 -9 -9 -8 -7 -6 ---------- Run | Scr Mat Mat Min Mat Fac Fac Machines Disabled 14 | . . . . . 3 11 Max in Single Turn 6 | . . . . . 2 6 Machines Sabotaged . | . . . . . . . Garrisons Compromised . | . . . . . . . Overloaded Fab Kills . | . . . . . . . Fab Network Shutdowns . | . . . . . . . Hacking | -11 -10 -9 -9 -8 -7 -6 --------- Run | Scr Mat Mat Min Mat Fac Fac Machines Accessed 7 | . 1 2 . 2 2 . Terminals 4 | . 1 2 . 1 . . Fabricators 1 | . . . . . 1 . Repair Stations 2 | . . . . 1 1 . Recycling Units . | . . . . . . . Scanalyzers . | . . . . . . . Garrison Access . | . . . . . . . Total Hacks 17 | . 2 4 . 7 4 . Successful 10 | . 1 3 . 4 2 . Failed 7 | . 1 1 . 3 2 . Catastrophic 1 | . . . . . 1 . Database Lockouts . | . . . . . . . Manual 6 | . 2 2 . 2 . . Terminals 9 | . 2 4 . 3 . . Fabricators 2 | . . . . . 2 . Repair Stations 6 | . . . . 4 2 . Recycling Units . | . . . . . . . Scanalyzers . | . . . . . . . Garrison Access . | . . . . . . . Terminal Hacks 3 | . . 2 . 1 . . Robot Analysis 1 | . . 1 . . . . Prototype ID Bank 2 | . . 1 . 1 . . Fabricator Hacks 1 | . . . . . 1 . Build 1 | . . . . . 1 . Repair Station Hacks 3 | . . . . 2 1 . Scan Component 2 | . . . . 1 1 . Repair 1 | . . . . 1 . . Recycling Unit Hacks . | . . . . . . . Scanalyzer . | . . . . . . . Garrison Access Hacks . | . . . . . . . Unauthorized Hacks 3 | . 1 1 . 1 . . Terminals 3 | . 1 1 . 1 . . Botnet 3 | . 1 1 . 1 . . Fabricators . | . . . . . . . Repair Stations . | . . . . . . . Recycling Units . | . . . . . . . Scanalyzers . | . . . . . . . Garrison Access . | . . . . . . . Data Cores Recovered . | . . . . . . . Used . | . . . . . . . Hacking Detections 6 | . 1 1 . 2 2 . Full Trace Events 2 | . . . . 1 1 . Feedback Events . | . . . . . . . Feedback Blocked . | . . . . . . . Robot Schematics Acquired . | . . . . . . . Robots Built . | . . . . . . . Matter . | . . . . . . . Time . | . . . . . . . Total Robot Build Rating . | . . . . . . . Part Schematics Acquired . | . . . . . . . Parts Built 2 | . . . . . 2 . Matter 234 | . . . . . 234 . Time 117 | . . . . . 117 . Total Part Build Rating 14 | . . . . . 14 . Parts Repaired 1 | . . . . 1 . . Time 25 | . . . . 25 . . Parts Recycled . | . . . . . . . Recycled Matter . | . . . . . . . Retrieved Matter . | . . . . . . . Retrieved Components . | . . . . . . . Parts Scanalyzed . | . . . . . . . Part Schematics Acquired . | . . . . . . . Parts Damaged . | . . . . . . . Bothacking | -11 -10 -9 -9 -8 -7 -6 ------------ Run | Scr Mat Mat Min Mat Fac Fac Used RIF Installer . | . . . . . . . Robots Hacked . | . . . . . . . Non-combat . | . . . . . . . Combat . | . . . . . . . Robot Hacks Applied . | . . . . . . . Relay Couplers Released . | . . . . . . . Robots Rewired . | . . . . . . . Allies Hacked . | . . . . . . . Hacks Repelled . | . . . . . . . Allies | -11 -10 -9 -9 -8 -7 -6 -------- Run | Scr Mat Mat Min Mat Fac Fac Total Allies . | . . . . . . . Largest Group . | . . . . . . . Highest-Rated Group . | . . . . . . . Highest-Rated Ally . | . . . . . . . Total Orders . | . . . . . . . Ally Attacks . | . . . . . . . Total Damage . | . . . . . . . Kills . | . . . . . . . Allies Corrupted . | . . . . . . . Allies Melted . | . . . . . . . Intel | -11 -10 -9 -9 -8 -7 -6 ------- Run | Scr Mat Mat Min Mat Fac Fac Robot Analysis Total 1 | . . 1 . . . . Derelict Logs Recovered . | . . . . . . . Drone Launches . | . . . . . . . Drone Recoveries . | . . . . . . . Exploration | -11 -10 -9 -9 -8 -7 -6 ------------- Run | Scr Mat Mat Min Mat Fac Fac Turns Passed 4362 | 72 308 538 105 536 1120 1683 Spaces Moved 1938 | 33 134 242 46 230 505 748 Core 4 | . . . . . . 4 Treads 1249 | 22 134 242 46 230 505 70 Legs 11 | 11 . . . . . . Wheels 674 | . . . . . . 674 Hover . | . . . . . . . Flight . | . . . . . . . Fastest Speed 120 | 120 160 160 180 165 165 120 Average Speed 162 | 146 160 173 180 171 174 147 Slowest Speed 1550 | 160 160 200 180 185 240 1550 Overloaded Moves . | . . . . . . . Propulsion Burnouts . | . . . . . . . Robots Hopped . | . . . . . . . Cave-ins Triggered . | . . . . . . . Exploration Rate (%) 19 | 4 26 25 29 19 16 18 Regions Visited 6 Branch Regions 1 Pre-discovered Areas . | . . . . . . . Known Exits Taken . | . . . . . . . Unknown Exits Taken 6 | 1 1 1 1 1 1 . Scrap Searched . | . . . . . . . Spaces Dug 2 | . . . . . . 2 Terrain Destroyed 122 | . . . 32 . 31 59 Melee 2 | . . . . . . 2 Projectile 4 | . . . . . . 4 AOE 116 | . . . 32 . 31 53 Terrain Rammed . | . . . . . . . Walls Destroyed . | . . . . . . . Machines Disabled . | . . . . . . . Actions | -11 -10 -9 -9 -8 -7 -6 --------- Run | Scr Mat Mat Min Mat Fac Fac Total 2703 | 46 188 304 55 322 683 1105 Wait 374 | . 27 9 . 32 119 187 Move 1932 | 32 133 241 45 229 504 748 Hop . | . . . . . . . Pick Up 43 | 2 4 5 . 7 15 10 Fast Attach 33 | 2 1 3 1 7 1 18 Attach 22 | . . 1 2 2 5 12 Detach 1 | . . . . . . 1 Swap 40 | 2 1 9 . 9 5 14 Drop 53 | 3 2 11 1 13 8 15 Fire 201 | 5 20 25 6 22 26 97 Melee 2 | . . . . . . 2 Ram . | . . . . . . . Kick . | . . . . . . . Crush 2 | . . . . 1 . 1 Escape Stasis . | . . . . . . . Rewire . | . . . . . . . Trap . | . . . . . . . Miscellaneous . | . . . . . . . Route ------- -11/Scrapyard -10/Materials -9/Materials -9/Mines -8/Materials -7/Factory -6/Factory History --------- Turn | Location | Event 1 | -11/Scrapyard | Discovered new exit (range 2) 73 | -11/Scrapyard | Entered Materials 308 | -10/Materials | Build established: Mutant 355 | -10/Materials | Discovered new exit (range 12) 381 | -10/Materials | Entered another Materials area 381 | -9/Materials | Evolved 2 slots: Weapon x2 883 | -9/Materials | Discovered new exit (range 16) 885 | -9/Materials | Build established: Scavenger-Tank 919 | -9/Materials | Entered Mines 924 | -9/Mines | Assembled infested the area 936 | -9/Mines | Met a Derelict bent on vengeance 1000 | -9/Mines | Lost 3 parts (1u2w) 1006 | -9/Mines | Discovered new exit (range 13) 1024 | -9/Mines | Entered Materials 1024 | -8/Materials | Evolved 2 slots: Utility x2 1178 | -8/Materials | Lost 3 parts (1n2w) 1374 | -8/Materials | Repaired Fission Core 1467 | -8/Materials | Build established: Scavenger-Skirmisher 1533 | -8/Materials | Discovered new exit (range 17) 1560 | -8/Materials | Entered Factory 1560 | -7/Factory | Evolved 2 slots: Utility x2 1731 | -7/Factory | Fabricated Adv. Focal Shield (x2) 2518 | -7/Factory | Build established: Hauler-Gunner 2635 | -7/Factory | Discovered new exit (range 17) 2680 | -7/Factory | Entered another Factory area 2680 | -6/Factory | Evolved 2 slots: Power x1, Weapon x1 2698 | -6/Factory | Lost 10 parts (2p2n3u3w) 2991 | -6/Factory | Build established: Hauler-Skirmisher 3050 | -6/Factory | Lost 6 parts (2p1n3w) 3329 | -6/Factory | Build established: Scavenger-Assassin 3663 | -6/Factory | Build established: Scavenger-Skirmisher 4110 | -6/Factory | Lost 3 parts (1p1u1w) 4334 | -6/Factory | Core integrity fell below 50% 4353 | -6/Factory | Core integrity fell below 20% 4358 | -6/Factory | System corruption reached 10% 4363 | -6/Factory | Destroyed by L-41 Fighter with Axe Last Messages --------------- 04303_ Slug penetrates U-05 Engineer. 04303_ U-05 Engineer destroyed. 04303_ Slug penetrates P-60 Hacker. 04303_ P-60 Hacker destroyed. 04305_ U-05 Engineer builds a Wall. 04305_ K-01 Serf collects debris. 04306_ Acquired 19 matter. 04307_ Arm. Huge Wheel destroyed. 04307_ Imp. Deuterium Engine destroyed. 04309_ U-05 Engineer builds a Wall. 04310_ K-01 Serf collects debris. 04329_ Hpw. Shock Rifle destroyed. 04330_ Imp. Heat Sink destroyed. 04331_ Imp. Deuterium Engine destroyed. 04332_ Imp. Heat Sink destroyed. 04337_ Coil Gun destroyed. 04343_ P-70 Sage resets W-25 Informer, system corruption cleaned. 04347_ Gauss Cannon destroyed. 04357_ Grenade Launcher destroyed. 04358_ Imp. Light Armor Plating destroyed. Map ----- +----------------------------------------------------+ | ?????????????????????????????????????????????????? | | ?????????????????????????????????????????????????? | | ?????????????????????????????????????????????????? | | ?????????????????????????????????????????????????? | | ?????????????????????????????????????????????????? | | ?????????????????????????????????????????????????? | | ?????????????????????????????????????????????????? | | ?????????????????????????????????????????????????? | | ????????????????????????????????????#####????????? | | ???????????????????????????? ?????? ???????? | | ???????????????????????????? #???# ?????? | | ??????????????????? ????"""" +??? ?? | | ??????????????????? """"""" #???# #? | | ??????????????????# """"""" #???# #? | | ??????????????????# ????# #? | | ??????????????????# ????# !! #? | | ??????????????????? "? ?????# !! # | | ??????????????????? T ?????# * # | | ????????????????????" ? ??????# /? | | ???????????????#????? ? ??????# #? | | ???????????????# ##### ## #??????# ^ #? | | ???????????????#u #??????# """""" #? | | ???????????????# #??????# """""" ! #? | | ?????????????? + pg #??###?# """""" #? | | ??????????" # g ######## "" "" #? | | ????????" ; @l!| =%= #? | | ????????????????##+#+## w |######## = #? | | ??????????????????????# #??##??# #? | | ??????????????????????# #??????######## #? | | ??????????????????????# #?????????????# #? | | ??????????????????????# #?????????????# #? | | ??????????????????????# ;?????????????# #? | | ??????????????????????# #?????????????# #? | | ??????????????????????# #?????????????# #? | | ??????????????????????# #?????????????# #? | | ??????????????????????# #?????????????# #? | | ??????????????????????# #??????######## !# | | ??????????????????????# #??????# # | | ??????????????????????+ #??" ## =+ | | ??????????????????????# k ? # | | ??????????????????????# ? ! # | | ??????????????????????# ? #? | | ??????????????????????# ""??""" """ """ #? | | ???????????????????????? ?????"" """ """ !! #? | | ???????????????????????????????""" """ """ !! #? | | ?????????????????????????????? !! #? | | ?????????????????????????? ? #? | | ??????????????????????????? ? = #? | | ??????????????????????????? #? | | ???????????????????????????? ?##### #? | +----------------------------------------------------+ Best States ------------- Heat Dissipation 65 Energy Generation 29 Energy Capacity 480 Matter Stores 300 Matter Capacity 300 Sight Range 18 Robot Scan Range 20 Terrain Scan Density 10 Armor Coverage 225 Resistance: KI 30 Resistance: EM 15 Evasion (%) 40 Targeting Accuracy 6 Recoil Reduction 2 Item Schematics ----------------- None Robot Schematics ------------------ None Fabricated ------------ Adv. Focal Shield | x2 | -7/Factory | Preloaded Alien Tech Used ----------------- None Achievements -------------- None Challenges ------------ None Game ------ Seed BladeWarpSlayer Manual? 0 Play Time 00:52:18 Cumulative 91.0 hours Start 2020.09.22 @ 21:21:24 End 2020.09.22 @ 22:30:56 Sessions 1 Manual Loads 0 Difficulty Rogue Special Mode None Game No. 151 Rogue 146 Adventurer 0 Explorer 5 Win Type - Total 0 Types 0/0/0/0/0/0/0/0/0 Lore% 37 Gallery% 54 Achievement% 42 Wizard Run 0 Options --------- ASCII 0 Keyboard 0 Movement Mouse Keybinds 0 Fullscreen 2 Font 18/Smallcaps Map View 76x50 Tactical HUD 1 Map Filters NONE Filters NONE Steam 1 RUN: f92dffb2-1847-4cb4-9d2b-80c1322cafa8